bitfinex/quotes_BTCUSD_20250917
["timestamp","ask_amount","ask_price","bid_price","bid_amount"]
[1758077592337,0.00596818,117080.0,117070.0,0.17164796]
[1758077592562,0.320543,117080.0,117070.0,0.46433796]
[1758077592847,0.320543,117080.0,117070.0,0.48995242]
[1758077593069,0.00596818,117080.0,117070.0,0.49009313]
[1758077593290,0.02191088,117080.0,117070.0,0.49009313]
[1758077593504,0.02387088,117080.0,117070.0,0.49019313]
[1758077593714,0.02387088,117080.0,117070.0,0.49003313]
[1758077593922,0.02387088,117080.0,117070.0,0.19723313]
[1758077594157,0.34849435,117080.0,117070.0,0.46379867]
[1758077594792,0.51931771,117080.0,117070.0,0.46367867]
[1758077595025,0.04985305,117080.0,117070.0,0.17107867]
[1758077595261,0.34849435,117080.0,117070.0,0.46359867]
[1758077595444,0.02207305,117080.0,117070.0,0.46709867]
[1758077595653,0.02217305,117080.0,117070.0,0.46740867]
[1758077596284,0.01620487,117080.0,117070.0,0.46740867]
[1758077596460,0.02218439,117080.0,117070.0,0.46728867]
[1758077596667,0.02218439,117080.0,117070.0,0.46697867]
[1758077596862,0.02218439,117080.0,117070.0,0.46728867]
[1758077597161,0.02218439,117080.0,117070.0,0.46716867]
[1758077597369,0.02218439,117080.0,117070.0,0.46685867]
[1758077597561,0.02202222,117080.0,117070.0,0.46685867]
[1758077597805,0.02202222,117080.0,117070.0,0.46716867]
[1758077598034,0.02218439,117080.0,117070.0,0.46716867]
[1758077598247,0.02202222,117080.0,117070.0,0.46716867]
[1758077599120,0.02202222,117080.0,117070.0,0.54920867]
[1758077599803,0.02202222,117080.0,117070.0,0.25692867]
[1758077600050,0.02202222,117080.0,117070.0,0.54864867]
[1758077600296,0.02192222,117080.0,117070.0,0.54864867]
[1758077600488,0.02192222,117080.0,117070.0,0.63515012]
[1758077600766,0.00597952,117080.0,117070.0,0.97515012]
[1758077601231,0.00597952,117080.0,117070.0,1.28235728]
[1758077601899,0.00597952,117080.0,117070.0,1.68235728]
[1758077602145,0.00597952,117080.0,117070.0,1.08343012]
[1758077602375,0.00597952,117080.0,117070.0,1.39059994]
[1758077603482,0.00026217,117130.0,117100.0,0.17079419]
[1758077603707,0.01620524,117130.0,117120.0,0.17076502]
[1758077603926,0.31484654,117130.0,117120.0,0.17076502]
[1758077604159,0.00853825,117120.0,117100.0,0.4]
[1758077604384,0.21675413,117120.0,117110.0,0.02564522]
[1758077604623,0.49404981,117120.0,117110.0,0.02564522]
[1758077604847,0.49610981,117120.0,117110.0,0.02564522]
[1758077605076,0.52192981,117120.0,117110.0,0.00014071]
[1758077605296,0.50598674,117120.0,117110.0,0.00014071]
[1758077605763,0.51339151,117120.0,117110.0,0.00014071]
[1758077606175,0.49744849,117120.0,117110.0,0.00014071]
[1758077606400,0.51338809,117120.0,117110.0,0.00014071]
[1758077608687,0.18892679,117120.0,117110.0,0.00064071]
[1758077608910,0.51422809,117120.0,117110.0,0.00014071]
[1758077609142,0.21558679,117120.0,117110.0,0.30054071]
[1758077609366,0.34346307,117120.0,117110.0,0.47132031]
[1758077609605,0.51422809,117120.0,117110.0,0.47132031]
[1758077609825,0.51422809,117120.0,117110.0,0.47142031]
[1758077610305,0.34346307,117120.0,117110.0,0.47142031]
[1758077610739,0.51422809,117120.0,117110.0,0.47142031]
[1758077611237,0.21558679,117120.0,117110.0,0.00024071]
[1758077611421,0.51422809,117120.0,117110.0,0.00024071]
[1758077611960,0.51622809,117120.0,117110.0,0.00024071]
[1758077612186,0.51422809,117120.0,117110.0,0.00024071]
[1758077612631,0.51522809,117120.0,117110.0,0.00024071]
[1758077612851,0.60172954,117120.0,117110.0,0.00014071]
[1758077613836,0.60172954,117120.0,117110.0,0.00114071]
[1758077614705,0.90420954,117120.0,117110.0,0.00114071]
[1758077615073,0.60556824,117120.0,117110.0,0.00114071]
[1758077615299,0.90995088,117120.0,117110.0,0.00114071]
[1758077615706,0.61130958,117120.0,117110.0,0.00114071]
[1758077616137,0.90995088,117120.0,117110.0,0.00114071]
[1758077617646,0.90995523,117120.0,117110.0,0.00114071]
[1758077619490,0.61027393,117120.0,117110.0,0.00114071]
[1758077619682,0.90891523,117120.0,117110.0,0.00114071]
[1758077619946,0.60771523,117120.0,117110.0,0.00114071]
[1758077620167,0.90875523,117120.0,117110.0,0.00114071]
[1758077620616,0.60771523,117120.0,117110.0,0.00114071]
[1758077620862,0.90919523,117120.0,117110.0,0.00114071]
[1758077621751,0.90920242,117120.0,117110.0,0.00114071]
[1758077626649,0.90791242,117120.0,117110.0,0.00114071]
[1758077627005,1.34862617,117120.0,117110.0,0.00114071]
[1758077627392,1.36461707,117120.0,117110.0,0.00114071]
[1758077627631,1.27811562,117120.0,117110.0,0.00114071]
[1758077627846,1.36011562,117120.0,117110.0,0.00114071]
[1758077628067,1.36011562,117120.0,117110.0,0.00014071]
[1758077628966,1.35911562,117120.0,117110.0,0.00014071]
[1758077629154,1.36211562,117120.0,117110.0,0.00014071]
[1758077629383,1.74725837,117120.0,117110.0,1e-08]
[1758077629604,1.84725837,117120.0,117110.0,1e-08]
[1758077629810,1.84569837,117120.0,117110.0,1e-08]
[1758077630498,1.84269837,117120.0,117110.0,1e-08]
[1758077630895,1.84737837,117120.0,117110.0,1e-08]
[1758077631247,1.54777837,117120.0,117110.0,1e-08]
[1758077631428,1.84737837,117120.0,117110.0,1e-08]
[1758077631830,1.84837837,117120.0,117110.0,1e-08]
[1758077632048,1.54877837,117120.0,117110.0,1e-08]
[1758077632252,1.74813837,117120.0,117110.0,1e-08]
[1758077633531,0.20096067,117090.0,117080.0,0.06920116]
[1758077633765,0.9889672,117090.0,117080.0,0.06920116]
[1758077633978,0.9910572,117090.0,117080.0,0.06920116]
[1758077634197,1.0177172,117090.0,117080.0,0.06920116]
[1758077634412,1.0178172,117090.0,117080.0,0.06920116]
[1758077634600,0.17083796,117070.0,117060.0,0.06920116]
[1758077634806,0.89795923,117070.0,117060.0,0.06920116]
[1758077635014,0.90535449,117070.0,117060.0,0.06920116]
[1758077635433,0.90545449,117070.0,117060.0,0.06920116]
[1758077635734,0.17085255,117060.0,117050.0,0.0001]
[1758077635952,0.49147763,117060.0,117050.0,0.00014689]
[1758077636175,0.52022763,117060.0,117050.0,0.00014689]
[1758077636410,0.52027904,117060.0,117050.0,0.00014689]
[1758077637252,0.52903045,117060.0,117050.0,0.00314689]
[1758077637486,0.52903033,117060.0,117050.0,0.00514689]
[1758077637735,0.61553178,117060.0,117050.0,0.00514689]
[1758077637965,0.91333178,117060.0,117050.0,0.00314689]
[1758077638388,0.91333178,117060.0,117050.0,0.00514689]
[1758077638603,0.91333178,117060.0,117050.0,0.00214689]
[1758077639017,0.91333178,117060.0,117050.0,0.00414689]
[1758077639275,0.91331304,117060.0,117050.0,0.00214689]
[1758077639514,0.61551304,117060.0,117050.0,0.00414689]
[1758077639724,0.91315304,117060.0,117050.0,0.00414689]
[1758077639946,1.02778777,117060.0,117050.0,0.00414689]
[1758077640872,1.02777392,117060.0,117050.0,0.00404689]
[1758077641076,1.39792582,117060.0,117050.0,0.00404689]
[1758077641987,1.28232582,117060.0,117050.0,1e-08]
[1758077642201,1.60338449,117060.0,117050.0,1e-08]
[1758077642427,1.19010846,117060.0,117050.0,1e-08]
[1758077642657,1.27660991,117060.0,117050.0,1e-08]
[1758077642876,1.27660991,117060.0,117010.0,0.0001]
[1758077643084,0.17091095,117020.0,117010.0,0.00056936]
[1758077643305,0.5971941,117020.0,117010.0,0.00056936]
[1758077643546,1.01852627,117020.0,117010.0,0.00056936]
[1758077643775,1.01852627,117020.0,117010.0,0.00046936]
[1758077644001,1.35831598,117020.0,117010.0,0.00046936]
[1758077644671,1.35815598,117020.0,117010.0,0.00046936]
[1758077645100,1.06199598,117020.0,117010.0,0.00046936]
[1758077645379,1.35815598,117020.0,117010.0,0.00046936]
[1758077645593,1.3621479,117020.0,117010.0,0.00046936]
[1758077647348,1.3627879,117020.0,117010.0,0.00046936]
[1758077648637,1.3621879,117020.0,117010.0,0.00046936]
[1758077648781,1.0669879,117020.0,117010.0,0.00046936]
[1758077649215,1.3621479,117020.0,117010.0,0.00046936]
[1758077650753,1.0669879,117020.0,117010.0,0.00046936]
[1758077650945,1.3621479,117020.0,117010.0,0.00046936]
[1758077653570,1.3611479,117020.0,117010.0,0.00046936]
[1758077654558,1.0669879,117020.0,117010.0,0.00046936]
[1758077654784,1.44740935,117020.0,117010.0,0.00046936]
[1758077654985,1.3609079,117020.0,117010.0,0.00046936]
[1758077655488,1.3608614,117020.0,117010.0,0.00046936]
[1758077655714,1.3910133,117020.0,117010.0,0.00046936]
[1758077655960,0.9242162,117000.0,116990.0,0.0004]
[1758077656210,1.3265788,117000.0,116990.0,0.0004]
[1758077656429,1.3285388,117000.0,116990.0,0.0004]
[1758077656620,1.3558988,117000.0,116990.0,0.0004]
[1758077656881,1.3559988,117000.0,116990.0,0.0004]
[1758077657334,1.4380788,117000.0,116990.0,0.0004]
[1758077657785,1.55573215,117000.0,116990.0,0.0004]
[1758077658272,1.55533215,117000.0,116990.0,0.0004]
[1758077658923,1.57951546,117000.0,116990.0,0.0004]
[1758077659872,1.58083546,117000.0,116990.0,0.0014]
[1758077660316,1.55657215,117000.0,116990.0,0.0004]
[1758077660536,1.55557215,117000.0,116990.0,0.0004]
[1758077660992,1.55657215,117000.0,116990.0,0.0004]
[1758077661212,1.55557215,117000.0,116990.0,0.0004]
[1758077661430,1.58031979,117000.0,116990.0,0.0004]
[1758077661647,1.58131979,117000.0,116990.0,0.0004]
[1758077661861,0.17098401,116970.0,116960.0,0.06930116]
[1758077662076,1.03764746,116970.0,116960.0,0.06930116]
[1758077662288,1.01627446,116970.0,116960.0,0.06930116]
[1758077662901,1.01637446,116970.0,116960.0,0.0001]
[1758077663379,1.01637446,116970.0,116960.0,0.0031]
[1758077664010,0.30352843,116970.0,116960.0,0.17807863]
[1758077664230,0.59704843,116970.0,116960.0,0.00708]
[1758077664733,0.59900843,116970.0,116960.0,0.0001]
[1758077664963,1.01553446,116970.0,116960.0,0.0001]
[1758077665188,1.02389815,116970.0,116960.0,0.0001]
[1758077666320,1.02389815,116970.0,116960.0,0.0011]
[1758077666691,1.02389815,116970.0,116960.0,0.001]
[1758077667607,1.10597815,116970.0,116960.0,0.001]
[1758077667814,1.1924796,116970.0,116960.0,0.001]
[1758077668029,1.10597815,116970.0,116960.0,0.001]
[1758077668492,0.17101325,116950.0,116940.0,0.0001]
[1758077668683,0.50894287,116950.0,116940.0,0.0001]
[1758077668895,0.49280622,116950.0,116940.0,0.0001]
[1758077669095,1.0151637,116950.0,116940.0,0.0001]
[1758077669755,0.17102787,116940.0,116930.0,0.12252727]
[1758077669984,0.17102787,116940.0,116930.0,0.12242727]
[1758077669985,0.32856077,116940.0,116930.0,0.12242727]
[1758077670359,0.72045832,116940.0,116930.0,0.12242727]
[1758077671100,0.72048403,116940.0,116930.0,0.12242727]
[1758077671329,0.72048403,116940.0,116930.0,0.12542727]
[1758077671782,1.25925738,116940.0,116930.0,0.12542727]
[1758077672012,1.25925738,116940.0,116930.0,0.10512875]
[1758077672682,1.28400502,116940.0,116930.0,0.10312875]
[1758077673613,1.28400502,116940.0,116930.0,0.10212875]
[1758077673801,1.28800502,116940.0,116930.0,0.10212875]
[1758077674029,1.33800502,116940.0,116930.0,0.10212875]
[1758077674465,1.37854793,116940.0,116930.0,0.09410466]
[1758077674912,1.66620645,116940.0,116930.0,0.09410466]
[1758077675145,1.69692513,116940.0,116930.0,0.09410466]
[1758077675609,1.40328513,116940.0,116930.0,0.09410466]
[1758077675829,1.69684513,116940.0,116930.0,0.09410466]
[1758077676318,1.69884513,116940.0,116930.0,0.09410466]
[1758077677579,2.14544513,116940.0,116930.0,0.09410466]
[1758077678355,1.18191756,116940.0,116930.0,0.09410466]
[1758077678560,1.59519359,116940.0,116930.0,0.09410466]
[1758077678807,1.62534549,116940.0,116930.0,0.09410466]
[1758077679017,0.80555359,116940.0,116930.0,0.09410466]
[1758077679250,1.44147359,116940.0,116930.0,0.09410466]
[1758077679485,1.47162549,116940.0,116930.0,0.09410466]
[1758077679726,1.02807756,116940.0,116930.0,0.09410466]
[1758077679968,1.02807756,116940.0,116930.0,0.09621466]
[1758077679969,1.03875359,116940.0,116930.0,0.09621466]
[1758077680187,1.33365359,116940.0,116930.0,0.09621466]
[1758077680413,1.35927359,116940.0,116930.0,0.09410466]
[1758077680717,1.33669359,116940.0,116930.0,0.09410466]
[1758077680921,1.33155359,116940.0,116930.0,0.09621466]
[1758077681153,1.35623359,116940.0,116930.0,0.09410466]
[1758077681381,1.35903359,116940.0,116930.0,0.09410466]
[1758077681811,1.38378123,116940.0,116930.0,0.09410466]
[1758077682035,1.38374123,116940.0,116930.0,0.09410466]
[1758077682433,1.09122123,116940.0,116930.0,0.09410466]
[1758077683088,1.38362123,116940.0,116930.0,0.09410466]
[1758077683974,1.41377313,116940.0,116930.0,0.09410466]
[1758077684123,1.50027458,116940.0,116930.0,0.09410466]
[1758077684734,1.50027458,116940.0,116910.0,0.0004]
[1758077684936,0.92433316,116920.0,116910.0,0.0004]
[1758077685169,1.32490285,116920.0,116910.0,0.0004]
[1758077685339,1.3526243,116920.0,116910.0,0.0004]
[1758077685551,1.43912575,116920.0,116910.0,0.0004]
[1758077686186,1.05600162,116920.0,116910.0,0.0004]
[1758077686402,1.46927765,116920.0,116910.0,0.0004]
[1758077686739,1.46927886,116920.0,116910.0,0.0004]
[1758077687992,1.46933346,116920.0,116910.0,0.0004]
[1758077690190,1.47033346,116920.0,116910.0,0.0004]
[1758077690414,1.47133346,116920.0,116910.0,0.0004]
[1758077690846,1.47033346,116920.0,116910.0,0.0004]
[1758077692437,1.4950811,116920.0,116910.0,0.0004]
[1758077694267,0.97924733,116910.0,116900.0,0.0002]
[1758077694467,1.46443573,116910.0,116900.0,0.0002]
[1758077694687,1.49333573,116910.0,116900.0,0.0002]
[1758077695093,1.49321573,116910.0,116900.0,0.0002]
[1758077695296,1.49317573,116910.0,116900.0,0.0002]
[1758077695503,1.49327573,116910.0,116900.0,0.00024692]
[1758077695933,1.49627573,116910.0,116900.0,0.00024692]
[1758077696099,1.06475474,116910.0,116900.0,0.00024692]
[1758077696347,1.35463474,116910.0,116900.0,0.00024692]
[1758077696558,0.62357871,116910.0,116900.0,0.00232692]
[1758077696722,1.32673474,116910.0,116900.0,0.00232692]
[1758077696929,1.32573474,116910.0,116900.0,0.00232692]
[1758077697277,1.03685474,116910.0,116900.0,0.00232692]
[1758077697484,1.32865474,116910.0,116900.0,0.00232692]
[1758077698109,0.91537871,116910.0,116900.0,0.00232692]
[1758077698315,1.3287233,116910.0,116900.0,0.00232692]
[1758077699334,1.3267633,116910.0,116900.0,0.00232692]
[1758077700004,1.0369233,116910.0,116900.0,0.00232692]
[1758077700259,1.3264833,116910.0,116900.0,0.00232692]
[1758077700904,1.40906107,116910.0,116900.0,0.00024692]
[1758077701118,1.42934529,116910.0,116900.0,0.00024692]
[1758077701338,1.43250529,116910.0,116900.0,0.00024692]
[1758077701787,1.40907529,116910.0,116900.0,0.00024692]
[1758077701967,1.05406445,116910.0,116900.0,0.00024692]
[1758077702189,1.34318445,116910.0,116900.0,0.00024692]
[1758077702612,1.05406445,116910.0,116900.0,0.00024692]
[1758077702885,1.34310445,116910.0,116900.0,0.00024692]
[1758077703107,1.05406445,116910.0,116900.0,0.00024692]
[1758077703317,1.34298445,116910.0,116900.0,0.00024692]
[1758077704072,0.17108639,116900.0,116890.0,0.0004]
[1758077704285,0.88957639,116900.0,116890.0,0.00044693]
[1758077704479,0.8681906,116900.0,116890.0,0.00258693]
[1758077704708,0.57078305,116900.0,116890.0,0.00258693]
[1758077704900,0.56836305,116900.0,116890.0,0.00258693]
[1758077705569,0.56828305,116900.0,116890.0,0.00258693]
[1758077706075,0.8742306,116900.0,116890.0,0.00044693]
[1758077706316,0.8976606,116900.0,116890.0,0.00044693]
[1758077707347,0.8976606,116900.0,116880.0,0.0002]
[1758077707348,0.51110103,116890.0,116880.0,0.0002]
[1758077707561,0.94505569,116890.0,116880.0,0.00024693]
[1758077707791,1.38979408,116890.0,116880.0,0.00024693]
[1758077708058,1.23207587,116880.0,116870.0,0.0002]
[1758077708264,1.23207587,116880.0,116870.0,0.00024694]
[1758077708265,1.55255108,116880.0,116870.0,0.00024694]
[1758077708490,1.60602872,116880.0,116870.0,0.00024694]
[1758077708722,1.69263017,116880.0,116870.0,0.00024694]
[1758077709380,1.39415017,116880.0,116870.0,0.00024694]
[1758077709582,1.77901162,116880.0,116870.0,0.00024694]
[1758077709785,1.38806578,116880.0,116870.0,0.00024694]
[1758077709998,1.39006578,116880.0,116870.0,0.00024694]
[1758077710203,1.39306578,116880.0,116870.0,0.00024694]
[1758077710419,1.39006578,116880.0,116870.0,0.00024694]
[1758077710824,0.79184332,116880.0,116870.0,0.00024694]
[1758077711050,1.06695814,116880.0,116870.0,0.00024694]
[1758077711279,1.36483814,116880.0,116870.0,0.00024694]
[1758077711482,1.06695814,116880.0,116870.0,0.00024694]
[1758077711711,1.36319814,116880.0,116870.0,0.00024694]
[1758077711927,1.36319814,116880.0,116850.0,0.0002]
[1758077711928,0.51114495,116860.0,116850.0,0.0002]
[1758077712133,1.39828469,116860.0,116850.0,0.00034086]
[1758077712335,1.47701469,116860.0,116850.0,0.00034086]
[1758077712729,1.47711469,116860.0,116850.0,0.00034086]
[1758077713146,1.48011469,116860.0,116850.0,0.00034086]
[1758077713360,1.43011469,116860.0,116850.0,0.00034086]
[1758077713786,1.48011469,116860.0,116850.0,0.00034086]
[1758077713997,1.43011469,116860.0,116850.0,0.00034086]
[1758077714228,0.5413115,116850.0,116840.0,0.0002]
[1758077714433,1.03617207,116850.0,116840.0,0.00028037]
[1758077714635,1.06500207,116850.0,116840.0,0.00028037]
[1758077715050,0.76513961,116850.0,116840.0,0.00028037]
[1758077715267,1.36288207,116850.0,116840.0,0.00028037]
[1758077715689,1.36283855,116850.0,116840.0,0.00028037]
[1758077715895,1.06595855,116850.0,116840.0,0.00028037]
[1758077716114,1.36379855,116850.0,116840.0,0.00028037]
[1758077716331,0.62285274,116850.0,116840.0,0.00242037]
[1758077716543,0.92109274,116850.0,116840.0,0.00028037]
[1758077716750,1.2209552,116850.0,116840.0,0.00028037]
[1758077716952,1.2443452,116850.0,116840.0,0.00028037]
[1758077717429,0.19421129,116850.0,116840.0,0.00386037]
[1758077717627,0.49233129,116850.0,116840.0,0.00386037]
[1758077717877,0.19421129,116850.0,116840.0,0.00386037]
[1758077718189,0.49217129,116850.0,116840.0,0.00386037]
[1758077718801,0.19421129,116850.0,116840.0,0.17503462]
[1758077719024,0.02305169,116850.0,116840.0,0.17503462]
[1758077719288,0.49185129,116850.0,116840.0,0.17503462]
[1758077720153,0.02305169,116850.0,116840.0,0.17503462]
[1758077720807,0.02305169,116850.0,116840.0,0.47499708]
[1758077721381,0.02295169,116850.0,116840.0,0.47499708]
[1758077722575,0.02295169,116850.0,116840.0,0.47599708]
[1758077723001,0.02195169,116850.0,116840.0,0.47599708]
[1758077723815,0.02195169,116850.0,116840.0,0.17713462]
[1758077724021,0.02195169,116850.0,116840.0,0.47699708]
[1758077725797,0.19311129,116850.0,116840.0,0.00452037]
[1758077726723,0.21450624,116850.0,116840.0,0.00452037]
[1758077726935,0.21460624,116850.0,116840.0,0.00452037]
[1758077727196,0.19321129,116850.0,116840.0,0.00452037]
[1758077727415,0.48993129,116850.0,116840.0,0.00452037]
[1758077727936,0.49207129,116850.0,116840.0,0.00452037]
[1758077729516,0.48993129,116850.0,116840.0,0.00452037]
[1758077731626,0.19321129,116850.0,116840.0,0.00596037]
[1758077732500,0.19321129,116850.0,116840.0,0.00452037]
[1758077733580,0.19321129,116850.0,116840.0,0.00596037]
[1758077735729,0.19321129,116850.0,116840.0,0.00452037]
[1758077737319,0.19528129,116850.0,116840.0,0.00238037]
[1758077737534,0.22270129,116850.0,116840.0,0.00238037]
[1758077737769,0.19853129,116850.0,116840.0,0.00238037]
[1758077737976,0.22270129,116850.0,116840.0,0.00238037]
[1758077738178,0.19853129,116850.0,116840.0,0.00238037]
[1758077738394,0.19321129,116850.0,116840.0,0.00435037]
[1758077739344,0.19321129,116850.0,116840.0,0.00335037]
[1758077739583,0.22370129,116850.0,116840.0,0.00138037]
[1758077740351,0.22045129,116850.0,116840.0,0.00235037]
[1758077740604,0.22370129,116850.0,116840.0,0.00038037]
[1758077741153,0.22370129,116850.0,116840.0,0.00028037]
[1758077741154,1.44878101,116850.0,116840.0,0.00028037]
[1758077741355,1.14891855,116850.0,116840.0,0.00028037]
[1758077741767,1.54017953,116850.0,116840.0,0.00028037]
[1758077742545,1.83337953,116850.0,116840.0,0.00028037]
[1758077743841,1.44220484,116850.0,116840.0,0.00028037]
[1758077744473,1.74215359,116850.0,116840.0,0.00028037]
[1758077744878,1.44895359,116850.0,116840.0,0.00028037]
[1758077745088,1.74151359,116850.0,116840.0,0.00028037]
[1758077745295,1.74139359,116850.0,116840.0,0.00028037]
[1758077746336,1.76614123,116850.0,116840.0,0.00028037]
[1758077746556,1.47370123,116850.0,116840.0,0.00028037]
[1758077747011,1.17375248,116850.0,116840.0,0.00028037]
[1758077747270,1.76582123,116850.0,116840.0,0.00028037]
[1758077747485,1.76782123,116850.0,116840.0,0.00028037]
[1758077748151,1.47570123,116850.0,116840.0,0.00028037]
[1758077748379,1.76762123,116850.0,116840.0,0.00028037]
[1758077748599,1.47570123,116850.0,116840.0,0.00028037]
[1758077748821,1.76746123,116850.0,116840.0,0.00028037]
[1758077749022,1.44276484,116850.0,116840.0,0.00028037]
[1758077749674,1.44256484,116850.0,116840.0,0.00028037]
[1758077750394,0.85105609,116850.0,116840.0,0.00028037]
[1758077750627,1.15100484,116850.0,116840.0,0.00028037]
[1758077750846,1.44244092,116850.0,116840.0,0.00028037]
[1758077751082,0.36494882,116850.0,116840.0,0.00225037]
[1758077751302,0.65630882,116850.0,116840.0,0.00369037]
[1758077751534,0.28274882,116850.0,116840.0,0.00369037]
[1758077751761,0.57410882,116850.0,116840.0,0.00369037]
[1758077752248,0.57310882,116850.0,116840.0,0.00369037]
[1758077752672,0.57110882,116850.0,116840.0,0.00225037]
[1758077753123,0.65968027,116850.0,116840.0,0.00225037]
[1758077753384,0.95962902,116850.0,116840.0,0.00225037]
[1758077753615,0.98704902,116850.0,116840.0,0.00028037]
[1758077754528,1.01720092,116850.0,116840.0,0.00028037]
[1758077754780,1.65714967,116850.0,116840.0,0.00028037]
[1758077755015,1.38194856,116850.0,116840.0,0.00028037]
[1758077755442,1.38294856,116850.0,116840.0,0.00028037]
[1758077756122,1.38394856,116850.0,116840.0,0.00028037]
[1758077756536,1.09258856,116850.0,116840.0,0.00028037]
[1758077756755,1.35848092,116850.0,116840.0,0.00028037]
[1758077757413,0.95118757,116850.0,116840.0,0.00028037]
[1758077757639,1.24154757,116850.0,116840.0,0.00028037]
[1758077758088,1.27169947,116850.0,116840.0,0.00028037]
[1758077758337,1.29644711,116850.0,116840.0,0.00028037]
[1758077759443,0.95184947,116850.0,116840.0,0.00028037]
[1758077759731,1.32907092,116850.0,116840.0,0.00233037]
[1758077759959,0.62174882,116850.0,116840.0,0.00233037]
[1758077760199,0.91242882,116850.0,116840.0,0.00233037]
[1758077760411,0.62174882,116850.0,116840.0,0.00233037]
[1758077760627,0.91222882,116850.0,116840.0,0.00233037]
[1758077760859,0.62174882,116850.0,116840.0,0.00233037]
[1758077761066,0.91218882,116850.0,116840.0,0.00233037]
[1758077761503,0.62390882,116850.0,116840.0,0.00233037]
[1758077761715,1.00085027,116850.0,116840.0,0.00233037]
[1758077762166,0.91218882,116850.0,116840.0,0.00233037]
[1758077762623,1.21413757,116850.0,116840.0,0.00233037]
[1758077763221,0.62390882,116850.0,116840.0,0.00233037]
[1758077763456,0.91418882,116850.0,116840.0,0.00233037]
[1758077763658,0.91202882,116850.0,116840.0,0.00377037]
[1758077764275,0.91182882,116850.0,116840.0,0.00377037]
[1758077764489,0.57174882,116850.0,116840.0,0.00233037]
[1758077765782,0.57177762,116850.0,116840.0,0.00233037]
[1758077766712,0.57393762,116850.0,116840.0,0.00233037]
[1758077767132,0.57707762,116850.0,116840.0,0.00028037]
[1758077767399,0.5950831,116850.0,116840.0,0.00028037]
[1758077767614,0.5679331,116850.0,116840.0,0.00233037]
[1758077768272,0.55192105,116850.0,116840.0,0.00233037]
[1758077768521,0.54976105,116850.0,116840.0,0.00233037]
[1758077769944,0.55192105,116850.0,116840.0,0.00028037]
[1758077770148,0.57593105,116850.0,116840.0,0.00028037]
[1758077770393,0.59508615,116850.0,116840.0,0.00028037]
[1758077770618,1.00973213,116850.0,116840.0,0.00028037]
[1758077770820,0.59508615,116850.0,116840.0,0.00028037]
[1758077770941,1.00973213,116850.0,116840.0,0.00028037]
[1758077773126,0.98258213,116850.0,116840.0,0.00233037]
[1758077773329,0.96656703,116850.0,116840.0,0.00233037]
[1758077774256,0.54976105,116850.0,116840.0,0.00233037]
[1758077775083,0.55192105,116850.0,116840.0,0.00233037]
[1758077775495,0.57593105,116850.0,116840.0,0.00233037]
[1758077776674,0.57493105,116850.0,116840.0,0.00233037]
[1758077777924,0.57807105,116850.0,116840.0,0.00028037]
[1758077778144,0.55092105,116850.0,116840.0,0.00028037]
[1758077778350,1.01746467,116850.0,116840.0,0.00028037]
[1758077778828,1.01332467,116850.0,116840.0,0.00233037]
[1758077779038,0.57250869,116850.0,116840.0,0.00233037]
[1758077779491,0.57466869,116850.0,116840.0,0.00233037]
[1758077779693,0.54992105,116850.0,116840.0,0.00233037]
[1758077779912,0.25776105,116850.0,116840.0,0.00377037]
[1758077780362,0.54684105,116850.0,116840.0,0.00377037]
[1758077780558,0.54684105,116850.0,116840.0,0.00233037]
[1758077781148,0.6386425,116850.0,116840.0,0.00028037]
[1758077781354,1.05328848,116850.0,116840.0,0.00028037]
[1758077781558,1.09332657,116850.0,116840.0,0.00028037]
[1758077781802,1.07729848,116850.0,116840.0,0.00028037]
[1758077782006,0.99079703,116850.0,116840.0,0.00028037]
[1758077782356,0.96364703,116850.0,116840.0,0.00233037]
[1758077783217,0.54900105,116850.0,116840.0,0.00233037]
[1758077783842,0.54684105,116850.0,116840.0,0.00233037]
[1758077785087,0.25776105,116850.0,116840.0,0.00233037]
[1758077785267,0.54692105,116850.0,116840.0,0.00233037]
[1758077785475,0.56295189,116850.0,116840.0,0.00233037]
[1758077785777,0.58084837,116850.0,116840.0,0.00233037]
[1758077786356,0.86945171,116850.0,116840.0,0.00377037]
[1758077786815,0.27379523,116850.0,116840.0,0.00377037]
[1758077787025,0.25776105,116850.0,116840.0,0.00377037]
[1758077787157,0.56219527,116850.0,116840.0,0.00377037]
[1758077788204,0.56417527,116850.0,116840.0,0.00028037]
[1758077788417,0.88025799,116850.0,116840.0,0.00028037]
[1758077788623,0.90491799,116850.0,116840.0,0.00028037]
[1758077789035,0.9721776,116850.0,116840.0,0.00028037]
[1758077789246,0.99692524,116850.0,116840.0,0.00028037]
[1758077789450,0.92966563,116850.0,116840.0,0.00028037]
[1758077794710,0.62260915,116850.0,116840.0,0.00028037]
[1758077794950,0.92966563,116850.0,116840.0,0.00028037]
[1758077797167,0.92967803,116850.0,116840.0,0.00028037]
[1758077798841,0.62262155,116850.0,116840.0,0.00028037]
[1758077799012,0.92967803,116850.0,116840.0,0.00028037]
[1758077799585,0.94737746,116850.0,116840.0,0.00028037]
[1758077800368,1.62458584,116850.0,116840.0,0.00028037]
[1758077801615,1.33618584,116850.0,116840.0,0.00028037]
[1758077801827,1.31556936,116850.0,116840.0,0.00028037]
[1758077803546,1.62262584,116850.0,116840.0,0.00028037]
[1758077804873,1.33616837,116850.0,116840.0,0.00028037]
[1758077805087,1.31503189,116850.0,116840.0,0.00028037]
[1758077805291,1.02911189,116850.0,116840.0,0.00028037]
[1758077805532,1.29008425,116850.0,116840.0,0.00028037]
[1758077805765,1.00436425,116850.0,116840.0,0.00028037]
[1758077805968,1.28996425,116850.0,116840.0,0.00028037]
[1758077806175,1.00436425,116850.0,116840.0,0.00028037]
[1758077806397,1.28996425,116850.0,116840.0,0.00028037]
[1758077807249,1.00436425,116850.0,116840.0,0.00028037]
[1758077807459,1.27210482,116850.0,116840.0,0.00028037]
[1758077808085,0.98666482,116850.0,116840.0,0.00028037]
[1758077808317,1.27210482,116850.0,116840.0,0.00028037]
[1758077808517,1.24744482,116850.0,116840.0,0.00028037]
[1758077808734,1.27210482,116850.0,116840.0,0.00028037]
[1758077809163,1.35860627,116850.0,116840.0,0.00028037]
[1758077809638,1.07316627,116850.0,116840.0,0.00028037]
[1758077809964,1.35860627,116850.0,116840.0,0.00028037]
[1758077810366,0.96504834,116850.0,116840.0,0.00028037]
[1758077810572,0.67960834,116850.0,116840.0,0.00233037]
[1758077810791,0.98666482,116850.0,116840.0,0.00233037]
[1758077810988,1.27210482,116850.0,116840.0,0.00233037]
[1758077811395,1.26909482,116850.0,116840.0,0.00233037]
[1758077812032,1.35559627,116850.0,116840.0,0.00028037]
[1758077812255,1.35860627,116850.0,116840.0,0.00028037]
[1758077812789,1.35859369,116850.0,116840.0,0.00028037]
[1758077817014,1.38334133,116850.0,116840.0,0.00028037]
[1758077818910,1.69039781,116850.0,116840.0,0.00028037]
[1758077820328,1.40495781,116850.0,116840.0,0.00028037]
[1758077820502,1.69035781,116850.0,116840.0,0.00028037]
[1758077820942,1.38330133,116850.0,116840.0,0.00028037]
[1758077821368,1.69035781,116850.0,116840.0,0.00028037]
[1758077822550,1.75600692,116850.0,116840.0,0.00028037]
[1758077824023,1.836175,116850.0,116840.0,0.00028037]